fUST/lending_fUST_20241220
["ID","MTS","AMOUNT","RATE_DAILY","PERIOD"]
[346069235,1734690480916,-500.0,0.00022465,6]
[346069236,1734690480940,-467.64437535,0.00022465,6]
[346069237,1734690480965,-500.0,0.00022465,6]
[346069238,1734690480988,-500.0,0.00022465,6]
[346069239,1734690481013,-500.0,0.00022465,6]
[346069240,1734690481041,-500.0,0.00022465,6]
[346069241,1734690481065,-792.98,0.00022465,6]
[346069242,1734690481087,-500.0,0.00022465,6]
[346069243,1734690481110,-1222.71,0.00022465,6]
[346069244,1734690481133,-500.0,0.00022465,6]
[346069245,1734690481157,-500.0,0.00022465,6]
[346069246,1734690481181,-500.0,0.00022465,6]
[346069247,1734690481204,-500.0,0.00022465,6]
[346069248,1734690481227,-500.0,0.00022465,6]
[346069249,1734690481248,-522.23,0.00022465,6]
[346069250,1734690481273,-500.0,0.00022465,6]
[346069251,1734690481304,-500.0,0.00022465,6]
[346069252,1734690481330,-500.0,0.00022465,6]
[346069253,1734690481357,-500.0,0.00022465,6]
[346069254,1734690481381,-500.0,0.00022465,6]
[346069255,1734690481406,-500.0,0.00022465,6]
[346069256,1734690481429,-500.0,0.00022465,6]
[346069257,1734690481453,-500.0,0.00022465,6]
[346069258,1734690481476,-500.0,0.00022465,6]
[346069259,1734690481500,-500.0,0.00022465,6]
[346069260,1734690481523,-594.8,0.00022465,6]
[346069261,1734690481549,-500.0,0.00022465,6]
[346069262,1734690481573,-500.0,0.00022465,6]
[346069263,1734690481602,-500.0,0.00022465,6]
[346069264,1734690481627,-500.0,0.00022465,6]
[346069265,1734690481651,-500.0,0.00022465,6]
[346069266,1734690481677,-250.248625,0.00022465,7]
[346069267,1734690481703,-500.0,0.00022465,6]
[346069268,1734690481726,-500.0,0.00022465,6]
[346069269,1734690481751,-250.248625,0.00022465,7]
[346069270,1734690481775,-250.248625,0.00022465,7]
[346069271,1734690481803,-250.248625,0.00022465,7]
[346069272,1734690481827,-250.248625,0.00022465,7]
[346069273,1734690481852,-250.248625,0.00022465,7]
[346069274,1734690481875,-200.0,0.00022465,6]
[346069275,1734690481899,-500.0,0.00022465,6]
[346069276,1734690481927,-500.0,0.00022465,6]
[346069277,1734690481956,-500.0,0.00022465,6]
[346069278,1734690481981,-500.0,0.00022465,6]
[346069279,1734690482005,-500.0,0.00022465,6]
[346069280,1734690482033,-553.02,0.00022465,6]
[346069281,1734690482060,-681.99,0.00022465,6]
[346069282,1734690482084,-502.62,0.00022465,6]
[346069283,1734690482108,-1914.98,0.00022465,6]
[346069284,1734690482131,-500.0,0.00022465,6]
[346069285,1734690482156,-500.0,0.00022465,6]
[346069286,1734690482179,-500.0,0.00022465,6]
[346069287,1734690482202,-201.01900049,0.00022465,6]
[346069288,1734690482225,-500.0,0.00022465,6]
[346069289,1734690482248,-357.85401002,0.00022465,6]
[346069290,1734690482270,-1670.13,0.00022465,6]
[346069291,1734690482298,-501.47,0.00022465,6]
[346069292,1734690482320,-625.03,0.00022465,6]
[346069293,1734690482342,-500.0,0.00022465,6]
[346069294,1734690482366,-500.0,0.00022465,6]
[346069295,1734690482390,-151.0,0.00022465,7]
[346069296,1734690482413,-1710.53,0.00022465,6]
[346069297,1734690482440,-151.0,0.00022465,7]
[346069298,1734690482463,-500.0,0.00022465,6]
[346069299,1734690482487,-500.0,0.00022465,6]
[346069300,1734690482511,-4564.0,0.00022465,6]
[346069301,1734690482538,-915.0,0.00022465,6]
[346069302,1734690482562,-500.0,0.00022465,6]
[346069303,1734690482587,-925.44,0.00022465,6]
[346069304,1734690482613,-629.69,0.00022465,6]
[346069305,1734690482638,-2144.66,0.00022465,6]
[346069306,1734690482661,-883.32,0.00022465,6]
[346069307,1734690482689,-802.96,0.00022465,6]
[346069308,1734690482713,-572.06,0.00022465,6]
[346069309,1734690482740,-500.0,0.00022465,6]
[346069310,1734690482764,-500.0,0.00022465,6]
[346069311,1734690482791,-500.0,0.00022465,6]
[346069312,1734690482816,-500.0,0.00022465,6]
[346069313,1734690482840,-584.16,0.00022465,6]
[346069314,1734690482862,-500.0,0.00022465,6]
[346069315,1734690482885,-500.0,0.00022465,6]
[346069316,1734690482906,-500.0,0.00022465,6]
[346069317,1734690482928,-500.0,0.00022465,6]
[346069318,1734690482951,-1398.36,0.00022465,6]
[346069319,1734690482972,-500.0,0.00022465,6]
[346069320,1734690482994,-1721.74,0.00022465,6]
[346069321,1734690483017,-1000.0,0.00022465,6]
[346069322,1734690483043,-500.0,0.00022465,6]
[346069323,1734690483074,-500.0,0.00022465,6]
[346069324,1734690483098,-500.0,0.00022465,6]
[346069325,1734690483121,-939.3,0.00022465,6]
[346069326,1734690483144,-500.0,0.00022465,6]
[346069327,1734690483167,-500.0,0.00022465,6]
[346069328,1734690483197,-1669.94,0.00022465,6]
[346069329,1734690483221,-520.15,0.00022465,6]
[346069330,1734690483246,-1500.6,0.00022465,6]
[346069331,1734690483268,-701.14,0.00022465,6]
[346069332,1734690483298,-502.62727664,0.00022465,6]
[346069333,1734690483323,-151.0,0.00022465,7]
[346069334,1734690483346,-155.20329873,0.00022465,6]
[346069335,1734690483370,-151.0,0.00022465,7]
[346069336,1734690483393,-151.0,0.00022465,7]
[346069337,1734690483416,-522.05,0.00022465,6]
[346069338,1734690483439,-500.0,0.00022465,6]
[346069339,1734690483462,-500.0,0.00022465,6]
[346069340,1734690483486,-510.63,0.00022465,6]
[346069341,1734690483508,-500.0,0.00022465,6]
[346069342,1734690483535,-500.0,0.00022465,2]
[346069343,1734690483558,-500.0,0.00022465,6]
[346069344,1734690483583,-409.783428,0.00022465,6]
[346069345,1734690483607,-3468.48,0.00022465,6]
[346069346,1734690483631,-613.86248247,0.00022465,6]
[346069347,1734690483658,-793.21,0.00022465,6]
[346069348,1734690483682,-500.0,0.00022465,6]
[346069349,1734690483706,-206.111219,0.00022465,7]
[346069350,1734690483729,-525.1,0.00022465,6]
[346069351,1734690483751,-543.14,0.00022465,6]
[346069352,1734690483774,-500.0,0.00022465,6]
[346069353,1734690483802,-1811.28,0.00022465,6]
[346069354,1734690483825,-194.77690038,0.00022465,6]
[346069355,1734690483851,-730.32,0.00022465,6]
[346069356,1734690484052,-706.04,0.00022465,6]
[346069357,1734690484076,-502.39788127,0.00022465,6]
[346069358,1734690484100,-410.81920512,0.00022465,6]
[346069359,1734690484124,-500.0,0.00022465,6]
[346069360,1734690484147,-500.0,0.00022465,6]
[346069361,1734690484170,-884.99,0.00022465,6]
[346069362,1734690484193,-500.0,0.00022465,6]
[346069363,1734690484221,-500.0,0.00022465,6]
[346069364,1734690484244,-500.0,0.00022465,6]
[346069365,1734690484267,-500.0,0.00022465,6]
[346069367,1734690484294,-794.77,0.00022465,6]
[346069368,1734690484317,-500.0,0.00022465,6]
[346069369,1734690484340,-763.98,0.00022465,6]
[346069370,1734690484364,-151.0,0.00022465,7]
[346069371,1734690484387,-150.0,0.00022465,6]
[346069372,1734690484410,-848.52,0.00022465,6]
[346069373,1734690484433,-151.0,0.00022465,7]
[346069374,1734690484456,-151.0,0.00022465,7]
[346069375,1734690484480,-518.57263692,0.00022465,6]
[346069376,1734690484504,-750.97,0.00022465,6]
[346069377,1734690484527,-3282.94,0.00022465,6]
[346069378,1734690484554,-500.0,0.00022465,6]
[346069379,1734690484578,-500.0,0.00022465,6]
[346069380,1734690484603,-552.2,0.00022465,6]
[346069381,1734690484629,-500.0,0.00022465,6]
[346069382,1734690484652,-500.0,0.00022465,6]
[346069383,1734690484679,-271.415491,0.00022465,7]
[346069384,1734690484704,-271.415491,0.00022465,7]
[346069385,1734690484726,-500.0,0.00022465,6]
[346069386,1734690484750,-500.0,0.00022465,6]
[346069387,1734690484774,-500.0,0.00022465,6]
[346069388,1734690484802,-500.0,0.00022465,6]
[346069389,1734690484827,-271.415491,0.00022465,7]
[346069390,1734690484850,-271.415491,0.00022465,7]
[346069391,1734690484873,-500.0,0.00022465,2]
[346069392,1734690484897,-500.0,0.00022465,6]
[346069393,1734690484920,-1528.22,0.00022465,6]
[346069394,1734690484944,-500.0,0.00022465,6]
[346069395,1734690484967,-500.0,0.00022465,6]
[346069396,1734690484990,-500.0,0.00022465,6]
[346069397,1734690485012,-500.0,0.00022465,2]
[346069398,1734690485037,-195.78694,0.00022465,7]
[346069399,1734690485065,-500.0,0.00022465,6]
[346069400,1734690485088,-500.0,0.00022465,6]
[346069401,1734690485110,-1069.68,0.00022465,6]
[346069402,1734690485133,-459.143886,0.00022465,7]
[346069403,1734690485156,-500.0,0.00022465,6]
[346069404,1734690485178,-459.143886,0.00022465,7]
[346069405,1734690485201,-459.143886,0.00022465,7]
[346069406,1734690485225,-500.0,0.00022465,2]
[346069407,1734690485249,-459.143886,0.00022465,7]
[346069408,1734690485272,-459.143886,0.00022465,7]
[346069409,1734690485299,-459.143886,0.00022465,7]
[346069410,1734690485322,-500.0,0.00022465,6]
[346069411,1734690485344,-500.0,0.00022465,6]
[346069412,1734690485367,-933.97,0.00022465,6]
[346069413,1734690485390,-500.0,0.00022465,6]
[346069414,1734690485414,-500.0,0.00022465,6]
[346069415,1734690485438,-584.99,0.00022465,6]
[346069416,1734690485461,-500.0,0.00022465,6]
[346069417,1734690485487,-1193.38,0.00022465,6]
[346069418,1734690485510,-500.0,0.00022465,6]
[346069419,1734690485538,-500.0,0.00022465,6]
[346069420,1734690485563,-819.33,0.00022465,6]
[346069421,1734690485590,-500.0,0.00022465,6]
[346069422,1734690485619,-686.22,0.00022465,6]
[346069423,1734690485642,-500.0,0.00022465,6]
[346069424,1734690485665,-577.14,0.00022465,6]
[346069425,1734690485690,-949.91,0.00022465,6]
[346069426,1734690485714,-500.0,0.00022465,6]
[346069427,1734690485737,-500.0,0.00022465,6]
[346069428,1734690485761,-482.970458,0.00022465,7]
[346069429,1734690485789,-500.0,0.00022465,6]
[346069430,1734690485812,-482.970458,0.00022465,7]
[346069431,1734690485835,-482.970458,0.00022465,7]
[346069432,1734690485859,-500.0,0.00022465,6]
[346069433,1734690485883,-549.35,0.00022465,6]
[346069434,1734690485906,-230.03758505,0.00022465,6]
[346069435,1734690485929,-1677.8,0.00022465,6]
[346069436,1734690485952,-500.0,0.00022465,6]
[346069437,1734690485973,-500.0,0.00022465,6]
[346069438,1734690485997,-500.0,0.00022465,6]
[346069439,1734690486020,-500.0,0.00022465,6]
[346069440,1734690486048,-500.0,0.00022465,6]
[346069441,1734690486071,-500.0,0.00022465,6]
[346069442,1734690486097,-650.85,0.00022465,6]
[346069443,1734690486119,-500.0,0.00022465,6]
[346069444,1734690486141,-500.0,0.00022465,6]
[346069445,1734690486163,-500.0,0.00022465,6]
[346069446,1734690486186,-500.0,0.00022465,6]
[346069447,1734690486210,-458.83579973,0.00022465,6]
[346069448,1734690486233,-1194.63,0.00022465,6]
[346069449,1734690486258,-229.46668135,0.00022465,6]
[346069450,1734690486285,-495.99609499,0.00022465,6]
[346069451,1734690486310,-500.0,0.00022465,6]
[346069452,1734690486335,-546.12,0.00022465,6]
[346069453,1734690486358,-500.0,0.00022465,6]
[346069454,1734690486382,-809.58,0.00022465,6]
[346069455,1734690486405,-504.79859755,0.00022465,6]
[346069456,1734690486429,-500.0,0.00022465,6]
[346069457,1734690486452,-570.89,0.00022465,6]
[346069458,1734690486475,-500.0,0.00022465,6]
[346069459,1734690486499,-500.0,0.00022465,6]
[346069460,1734690486522,-500.0,0.00022465,6]
[346069461,1734690486549,-500.0,0.00022465,6]
[346069462,1734690486572,-474.48896217,0.00022465,6]
[346069463,1734690486595,-500.0,0.00022465,6]
[346069464,1734690486621,-555.06,0.00022465,6]
[346069465,1734690486644,-500.0,0.00022465,6]
[346069466,1734690486666,-500.0,0.00022465,6]
[346069467,1734690486692,-1726.74,0.00022465,6]
[346069468,1734690486714,-500.0,0.00022465,6]
[346069469,1734690486736,-500.0,0.00022465,6]
[346069470,1734690486760,-500.0,0.00022465,6]
[346069471,1734690486786,-696.43,0.00022465,6]
[346069472,1734690486811,-500.0,0.00022465,6]
[346069473,1734690486834,-1131.39,0.00022465,6]
[346069474,1734690486858,-886.46,0.00022465,6]
[346069475,1734690486882,-500.0,0.00022465,6]
[346069476,1734690486904,-689.76,0.00022465,6]
[346069477,1734690486926,-500.0,0.00022465,6]
[346069478,1734690486949,-1024.46,0.00022465,6]
[346069479,1734690486970,-500.0,0.00022465,6]
[346069480,1734690487146,-296.42,0.00022465,6]
[346069481,1734690487169,-610.18,0.00022465,6]
[346069482,1734690487192,-500.0,0.00022465,6]
[346069483,1734690487214,-2277.71,0.00022465,6]
[346069484,1734690487236,-500.0,0.00022465,6]
[346069485,1734690487261,-500.0,0.00022465,6]
[346069486,1734690487286,-274.790238,0.00022465,7]
[346069487,1734690487309,-274.790238,0.00022465,7]
[346069488,1734690487333,-274.790238,0.00022465,7]
[346069489,1734690487355,-500.0,0.00022465,6]
[346069490,1734690487379,-500.0,0.00022465,6]
[346069491,1734690487403,-561.7,0.00022465,6]
[346069492,1734690487426,-274.790238,0.00022465,7]
[346069493,1734690487449,-274.790238,0.00022465,7]
[346069494,1734690487471,-274.790238,0.00022465,7]
[346069495,1734690487495,-165.073798,0.00022465,7]
[346069496,1734690487520,-950.5,0.00022465,6]
[346069497,1734690487548,-165.073798,0.00022465,7]
[346069498,1734690487572,-165.073798,0.00022465,7]
[346069499,1734690487597,-165.073798,0.00022465,7]
[346069500,1734690487620,-165.073798,0.00022465,7]
[346069501,1734690487644,-165.073798,0.00022465,7]
[346069502,1734690487667,-3536.79,0.00022465,6]
[346069503,1734690487691,-500.0,0.00022465,6]
[346069504,1734690487715,-516.41,0.00022465,6]
[346069505,1734690487739,-545.078597,0.00022465,7]
[346069506,1734690487763,-545.078597,0.00022465,7]
[346069507,1734690487789,-545.078597,0.00022465,7]
[346069508,1734690487814,-12921.79,0.00022465,6]
[346069509,1734690487839,-151.0,0.00022465,7]
[346069510,1734690487862,-151.0,0.00022465,7]
[346069511,1734690487885,-500.0,0.00022465,2]
[346069512,1734690487907,-500.0,0.00022465,6]
[346069513,1734690487932,-545.078597,0.00022465,7]
[346069514,1734690487955,-198.383115,0.00022465,7]
[346069515,1734690487977,-545.078597,0.00022465,7]
[346069516,1734690488000,-198.383115,0.00022465,7]
[346069517,1734690488022,-545.078597,0.00022465,7]
[346069518,1734690488046,-151.0,0.00022465,7]
[346069519,1734690488070,-151.0,0.00022465,7]
[346069520,1734690488092,-1008.05,0.00022465,6]
[346069521,1734690488114,-500.0,0.00022465,6]
[346069522,1734690488137,-198.383115,0.00022465,7]
[346069523,1734690488159,-198.383115,0.00022465,7]
[346069524,1734690488181,-151.0,0.00022465,7]
[346069525,1734690488203,-151.0,0.00022465,7]
[346069526,1734690488227,-181.941823,0.00022465,7]
[346069527,1734690488251,-982.52,0.00022465,6]
[346069528,1734690488274,-14121.13,0.00022465,6]
[346069529,1734690488302,-503.85,0.00022465,6]
[346069530,1734690488325,-500.0,0.00022465,6]
[346069531,1734690488349,-500.0,0.00022465,6]
[346069532,1734690488372,-4115.48,0.00022465,6]
[346069533,1734690488395,-402.37627451,0.00022465,6]
[346069534,1734690488418,-1358.71,0.00022465,6]
[346069535,1734690488440,-500.0,0.00022465,6]
[346069536,1734690488462,-500.0,0.00022465,6]
[346069537,1734690488487,-500.0,0.00022465,6]
[346069538,1734690488510,-1082.11,0.00022465,6]
[346069539,1734690488537,-557.08717599,0.00022465,6]
[346069540,1734690488560,-607.64,0.00022465,6]
[346069541,1734690488585,-500.0,0.00022465,6]
[346069542,1734690488611,-500.0,0.00022465,6]
[346069543,1734690488636,-810.56,0.00022465,6]
[346069544,1734690488660,-1780.08,0.00022465,6]
[346069545,1734690488684,-2819.06,0.00022465,6]
[346069546,1734690488708,-1121.1,0.00022465,6]
[346069547,1734690488732,-756.18,0.00022465,6]
[346069548,1734690488755,-500.0,0.00022465,6]
[346069549,1734690488777,-184.00163878,0.00022465,6]
[346069550,1734690488807,-500.0,0.00022465,6]
[346069551,1734690488831,-394.301777,0.00022465,7]
[346069552,1734690488855,-394.301777,0.00022465,7]
[346069553,1734690488880,-500.0,0.00022465,6]
[346069554,1734690488904,-394.301777,0.00022465,7]
[346069555,1734690488927,-1670.65,0.00022465,6]
[346069556,1734690488949,-1261.37,0.00022465,6]
[346069557,1734690488972,-394.301777,0.00022465,7]
[346069558,1734690488994,-394.301777,0.00022465,7]
[346069559,1734690489017,-394.301777,0.00022465,7]
[346069560,1734690489047,-500.0,0.00022465,6]
[346069561,1734690489070,-1997.25,0.00022465,6]
[346069562,1734690489094,-2014.24,0.00022465,6]
[346069563,1734690489117,-500.0,0.00022465,6]
[346069564,1734690489139,-500.0,0.00022465,6]
[346069565,1734690489163,-689.8,0.00022465,6]
[346069566,1734690489185,-500.0,0.00022465,6]
[346069567,1734690489207,-500.0,0.00022465,6]
[346069568,1734690489229,-500.0,0.00022465,6]
[346069569,1734690489253,-1037.05,0.00022465,6]
[346069570,1734690489275,-1649.57,0.00022465,6]
[346069571,1734690489302,-500.0,0.00022465,6]
[346069572,1734690489326,-679.62,0.00022465,6]
[346069573,1734690489350,-2650.47,0.00022465,6]
[346069574,1734690489373,-500.0,0.00022465,6]
[346069575,1734690489396,-500.0,0.00022465,6]
[346069576,1734690489420,-5300.21,0.00022465,6]
[346069577,1734690489443,-500.0,0.00022465,6]
[346069578,1734690489466,-500.0,0.00022465,6]
[346069579,1734690489488,-2115.33,0.00022465,6]
[346069580,1734690489512,-1381.96,0.00022465,6]
[346069581,1734690489538,-500.0,0.00022465,6]
[346069582,1734690489560,-500.0,0.00022465,6]
[346069583,1734690489583,-500.0,0.00022465,6]
[346069584,1734690489609,-500.0,0.00022465,6]
[346069585,1734690489632,-847.09,0.00022465,6]
[346069586,1734690489655,-2250.01,0.00022465,6]
[346069587,1734690489679,-847.5,0.00022465,6]
[346069588,1734690489701,-500.0,0.00022465,6]
[346069589,1734690489724,-500.0,0.00022465,6]
[346069590,1734690489746,-500.0,0.00022465,6]
[346069591,1734690489770,-500.0,0.00022465,6]
[346069592,1734690489795,-10912.6,0.00022465,6]
[346069593,1734690489820,-2765.59,0.00022465,6]
[346069594,1734690489843,-6025.03,0.00022465,2]
[346069595,1734690489866,-500.0,0.00022465,6]
[346069596,1734690489889,-731.36,0.00022465,6]
[346069597,1734690489912,-190.344205,0.00022465,7]
[346069598,1734690490070,-190.344205,0.00022465,7]
[346069599,1734690490094,-190.344205,0.00022465,7]
[346069600,1734690490118,-500.0,0.00022465,6]
[346069601,1734690490140,-971.72,0.00022465,6]
[346069602,1734690490163,-190.344205,0.00022465,7]
[346069603,1734690490185,-5962.91,0.00022465,6]
[346069604,1734690490208,-190.344205,0.00022465,7]
[346069605,1734690490231,-6325.21,0.00022465,6]
[346069606,1734690490254,-190.344205,0.00022465,7]
[346069607,1734690490276,-500.0,0.00022465,6]
[346069608,1734690490302,-2863.26,0.00022465,6]
[346069609,1734690490324,-500.0,0.00022465,6]
[346069610,1734690490348,-843.68,0.00022465,6]
[346069611,1734690490370,-2220.57,0.00022465,6]
[346069612,1734690490392,-500.0,0.00022465,6]
[346069613,1734690490416,-3785.57837078,0.00022465,6]
[346069614,1734690516900,12360.38743724,0.00025,120]
[346069616,1734690519692,320.94452274,0.00025,120]
[346069711,1734690636358,-300.0,0.00020999,2]
[346069713,1734690636367,-300.0,0.00020999,2]
[346069715,1734690636376,-3.74217233,0.00021,2]
[346069717,1734690636387,-49059.99999817,0.00021,2]
[346069719,1734690636399,-4817.01930029,0.00021,2]
[346069722,1734690636419,-2090.00106073,0.00021,2]
[346069724,1734690636433,-3214.9,0.00021,2]
[346069972,1734690639420,-1614.445,0.00021,2]
[346069974,1734690639433,-44409.01649149,0.00021,2]
[346069976,1734690639446,-42380.84125725,0.00021,2]
[346069978,1734690639456,-153.0,0.00021625,2]
[346069980,1734690639465,-153.0,0.00021625,2]
[346069983,1734690639474,-153.0,0.00021625,2]
[346069984,1734690639484,-153.0,0.00021625,2]
[346069986,1734690639493,-153.0,0.00021625,2]
[346069988,1734690639503,-153.0,0.00021625,2]
[346069990,1734690639513,-153.0,0.00021625,2]
[346069992,1734690639523,-153.0,0.00021625,2]
[346069994,1734690639532,-153.0,0.00021625,2]
[346069997,1734690639541,-153.0,0.00021625,2]
[346069999,1734690639551,-150.0,0.00021805,2]
[346070001,1734690639561,-666.0,0.00021817,2]
[346070003,1734690639570,-9373.26558327,0.00021817,3]
[346070005,1734690639579,-231.02564149,0.00021917,6]
[346070006,1734690639589,-500.0,0.00021917,6]
[346070009,1734690639598,-500.0,0.00021917,6]
[346070010,1734690639608,-1645.68,0.00021917,6]
[346070012,1734690639617,-500.0,0.00021917,6]
[346070014,1734690639627,-500.0,0.00021917,6]
[346070016,1734690639639,-500.0,0.00021917,6]
[346070018,1734690639650,-500.0,0.00021917,6]
[346070020,1734690639664,-800.63,0.00021917,6]
[346070022,1734690639675,-641.08006153,0.00021917,6]
[346070024,1734690639685,-821.89,0.00021917,6]
[346070026,1734690639695,-285.74109699,0.00021917,6]
[346070028,1734690639705,-670.47,0.00021917,6]
[346070030,1734690639715,-2434.26,0.00021917,6]
[346070032,1734690639725,-500.0,0.00021917,6]
[346070034,1734690639734,-500.0,0.00021917,6]
[346070036,1734690639744,-4637.68,0.00021917,6]
[346070038,1734690639753,-702.59,0.00021917,6]
[346070039,1734690639763,-500.0,0.00021917,6]
[346070040,1734690639773,-500.0,0.00021917,6]
[346070041,1734690639782,-3256.2,0.00021917,2]
[346070042,1734690639791,-613.49,0.00021917,6]
[346070043,1734690639800,-1769.2,0.00021917,6]
[346070044,1734690639810,-500.0,0.00021917,6]
[346070045,1734690639820,-500.0,0.00021917,6]
[346070046,1734690639829,-500.0,0.00021917,6]
[346070048,1734690639839,-500.0,0.00021917,6]
[346070050,1734690639848,-500.0,0.00021917,6]
[346070052,1734690639858,-500.0,0.00021917,6]
[346070054,1734690639868,-500.0,0.00021917,6]
[346070056,1734690639878,-9548.53,0.00021917,6]
[346070057,1734690639887,-544.84,0.00021917,6]
[346070060,1734690639896,-500.0,0.00021917,6]
[346070063,1734690639910,-2419.9,0.00021917,6]
[346070065,1734690639919,-500.0,0.00021917,6]
[346070066,1734690639929,-5217.54,0.00021917,6]
[346070068,1734690639938,-500.0,0.00021917,6]
[346070069,1734690639947,-866.33,0.00021917,6]
[346070071,1734690639957,-500.0,0.00021917,6]
[346070072,1734690639966,-1313.02,0.00021917,6]
[346070074,1734690639975,-5534.56,0.00021917,6]
[346070075,1734690639985,-3034.92,0.00021917,6]
[346070076,1734690639994,-774.37,0.00021917,6]
[346070077,1734690640003,-500.0,0.00021917,6]
[346070080,1734690640012,-1827.89,0.00021917,6]
[346070082,1734690640022,-500.0,0.00021917,6]
[346070083,1734690640031,-686.97,0.00021917,6]
[346070084,1734690640040,-1461.37,0.00021917,6]
[346070085,1734690640050,-500.0,0.00021917,6]
[346070087,1734690640059,-506.08441631,0.00021917,6]
[346070088,1734690640068,-3144.96,0.00021917,6]
[346070089,1734690640077,-500.0,0.00021917,6]
[346070090,1734690640087,-500.0,0.00021917,6]
[346070092,1734690640096,-500.0,0.00021917,6]
[346070093,1734690640105,-500.0,0.00021917,6]
[346070094,1734690640115,-500.0,0.00021917,6]
[346070095,1734690640125,-2015.01,0.00021917,6]
[346070096,1734690640134,-522.14,0.00021917,6]
[346070097,1734690640144,-500.0,0.00021917,6]
[346070098,1734690640159,-500.0,0.00021917,6]
[346070099,1734690640169,-1071.71,0.00021917,6]
[346070100,1734690640178,-500.0,0.00021917,6]
[346070101,1734690640187,-500.0,0.00021917,6]
[346070102,1734690640197,-500.0,0.00021917,6]
[346070104,1734690640206,-494.36078017,0.00021917,6]
[346070105,1734690640215,-500.0,0.00021917,6]
[346070106,1734690640225,-1332.62,0.00021917,6]
[346070107,1734690640234,-500.0,0.00021917,6]
[346070108,1734690640243,-500.0,0.00021917,6]
[346070109,1734690640252,-500.0,0.00021917,6]
[346070110,1734690640262,-477.50714234,0.00021917,6]
[346070112,1734690640272,-500.0,0.00021917,6]
[346070114,1734690640281,-80000.4,0.00021917,6]
[346070116,1734690640291,-22802.27,0.00021917,6]
[346070117,1734690640300,-500.0,0.00021917,6]
[346070118,1734690640310,-500.0,0.00021917,6]
[346070119,1734690640319,-500.0,0.00021917,6]
[346070120,1734690640328,-500.0,0.00021917,6]
[346070121,1734690640338,-511.14,0.00021917,6]
[346070122,1734690640346,-500.0,0.00021917,6]
[346070123,1734690640356,-1059.12,0.00021917,6]
[346070124,1734690640366,-500.0,0.00021917,6]
[346070125,1734690640376,-1506.52,0.00021917,6]
[346070126,1734690640385,-135.19747773,0.00021917,6]
[346070144,1734690641625,-753.05252227,0.00021917,6]
[346070145,1734690641638,-668.49,0.00021917,6]
[346070146,1734690641647,-6687.84502673,0.00021917,6]
[346070670,1734690649479,-1442.43497327,0.00021917,6]
[346070671,1734690649489,-240.31377725,0.00021917,6]
[346070672,1734690649498,-511.87,0.00021917,6]
[346070673,1734690649507,-1055.4,0.00021917,6]
[346070674,1734690649516,-1461.19,0.00021917,6]
[346070675,1734690649526,-500.0,0.00021917,6]
[346070676,1734690649535,-500.0,0.00021917,6]
[346070677,1734690649544,-500.0,0.00021917,6]
[346070678,1734690649553,-187.94589613,0.00021917,6]
[346070679,1734690649563,-19559.34,0.00021917,6]